Cogmind - Beta 17 @@@ ROGUE MODE // 2026.08.03 @ 04:33:33 Player: 4R-ZE3 Result: Destroyed by Executioner with Helical Railgun Performance ------------- Evolutions (8) 4000 Regions Visited (12) 2400 Robots Destroyed (99) 495 Value Destroyed (6112) 6112 Prototype IDs (17) 340 Alien Tech Used (3) 600 Bonus (2568) 2568 TOTAL SCORE: 16515 Bonus ------- High Alert Combat Kills 496 Follower Combat Kills 223 Registered with UFD 300 Met Optimus in HQ 500 Scanned by Researcher 500 Met Optimus at Protoforge 1000 Friendly Fire -451 Cogmind --------- Core Integrity 0/1450 Matter 288/300 Energy 190/190 System Corruption 21% Temperature Cool (0) Movement Treading (180) Ox2 Location -2/Protoforge Parts ------- > --- POWER (2) -------- Light Quantum Reactor > --- PROPULSION (6) --- Overtuned Medium Treads Experimental VSS Leg Experimental VSS Leg > --- UTILITY (9) ------ 0bPrime Scrap Suit Experimental Heat Sink Large Storage Unit Experimental Optical Array Experimental Core Analyzer Experimental Kinecellerator Graphene Brace Advanced Focal Shield > --- WEAPON (6) ------- KE Penetrator Overtuned Coil Gun Overtuned Coil Gun Railgun > --- INVENTORY (15) --- Improved Antigrav System Improved Gyrokinetic Inverter Improved Linear Gravjet Improved Linear Gravjet Improved Linear Gravjet Q-thruster Impulse Thruster Array Experimental Q-thruster Advanced Component Analysis Suite Gamma Rifle Peak State ------------ > --- POWER ------------ Light Antimatter Reactor Light Quantum Reactor > --- PROPULSION ------- Overtuned Medium Treads Overtuned Medium Treads Overtuned Medium Treads Overtuned Medium Treads Experimental VSS Leg Experimental VSS Leg > --- UTILITY ---------- 0bPrime Scrap Suit Experimental Heat Sink Large Storage Unit Experimental Optical Array Experimental Core Analyzer Experimental Kinecellerator Graphene Brace Advanced Focal Shield > --- WEAPON ----------- KE Penetrator Overtuned Coil Gun Railgun Concept XC Strikerail Concept XC Strikerail > --- INVENTORY -------- Light Antimatter Reactor Improved Antigrav System Improved Gyrokinetic Inverter Improved Linear Gravjet Improved Linear Gravjet Improved Linear Gravjet Q-thruster Impulse Thruster Array Experimental Q-thruster Advanced Component Analysis Suite Gamma Rifle [Rating: 180] Favorites ----------- Power Micro Antimatter Reactor Engine Ion Engine Power Core Light Nuclear Core Reactor Micro Antimatter Reactor Propulsion Light Treads Treads Light Treads Leg Improved Titanium Leg Wheel Wheel Hover Unit Improved Antigrav System Flight Unit Impulse Thruster Array Utility High-capacity Storage Unit Device Advanced Heat Sink Storage High-capacity Storage Unit Processor Advanced Signal Interpreter Hackware Improved Hacking Suite Protection Improved Light Armor Plating Artifact Phase Redirector Weapon Gauss Cannon Energy Gun Enhanced Force Rifle Energy Cannon Enhanced Nova Cannon Ballistic Gun KE Penetrator Ballistic Cannon Gauss Cannon Special Weapon Remote Datajack Impact Weapon Powered Hammer Slashing Weapon Sigix Broadsword Special Melee Weapon Advanced Datajack Build | -11 -10 -10 -7 -7 -5 -4 -4 -4 -3 -2 -2 -2 ------- Run | Yrd Mat Sub Rec Scr Fac Fac Upp Upp Res Res Qua Frg Slots Evolved 16 | . . . . . 10 2 . . 2 2 . . Power 1 | . . . . . . 1 . . . . . . Propulsion 4 | . . . . . 2 . . . 2 . . . Utility 7 | . . . . . 4 1 . . . 2 . . Weapon 4 | . . . . . 4 . . . . . . . Parts Attached 189 | 6 3 9 7 5 31 23 11 . 40 15 7 32 Power 25 | 1 1 1 . 1 3 2 3 . 6 1 . 6 Engine 7 | 1 . 1 . 1 2 . 1 . 1 . . . Core 5 | . 1 . . . 1 2 1 . . . . . Reactor 13 | . . . . . . . 1 . 5 1 . 6 Propulsion 56 | 2 . 3 2 2 9 4 2 . 15 6 1 10 Treads 19 | 2 . . 2 2 3 4 . . . . . 6 Leg 16 | . . 2 . . 6 . 2 . 2 . . 4 Wheel 1 | . . 1 . . . . . . . . . . Hover 19 | . . . . . . . . . 12 6 1 . Flight 1 | . . . . . . . . . 1 . . . Utility 59 | 1 2 1 2 2 8 12 3 . 11 4 4 9 Device 40 | . . 1 . 2 6 9 2 . 8 3 3 6 Storage 5 | 1 2 . 1 . . . . . . 1 . . Processor 5 | . . . . . 1 1 . . 1 . . 2 Hackware 3 | . . . . . . . . . 2 . . 1 Protection 5 | . . . 1 . 1 2 1 . . . . . Artifact 1 | . . . . . . . . . . . 1 . Weapon 49 | 2 . 4 3 . 11 5 3 . 8 4 2 7 Energy Gun 16 | 1 . 2 . . . 4 1 . 6 2 . . Energy Cannon 4 | . . 1 . . . . . . . 2 1 . Ballistic Gun 17 | 1 . 1 . . 9 . . . . . . 6 Ballistic Cannon 6 | . . . 2 . 1 1 2 . . . . . Launcher . | . . . . . . . . . . . . . Special Weapon 3 | . . . 1 . 1 . . . 1 . . . Impact Weapon . | . . . . . . . . . . . . . Slashing Weapon 2 | . . . . . . . . . . . 1 1 Piercing Weapon . | . . . . . . . . . . . . . Special Melee Weapon 1 | . . . . . . . . . 1 . . . Unidentified Prototypes 9 | . . . . . . . . . . . 2 7 Parts Lost 124 | . . 8 . . 30 14 11 . 12 8 11 30 Power 18 | . . 1 . . 2 3 2 . 1 . 1 8 Propulsion 36 | . . 3 . . 11 4 2 . 5 1 1 9 Utility 27 | . . . . . 5 1 5 . 2 4 7 3 Weapon 43 | . . 4 . . 12 6 2 . 4 3 2 10 Highest Loss Streak 12 | . . 6 . . 8 7 7 . 4 6 9 12 To Critical Strikes 3 | . . . . . 2 1 . . . . . . Average Backups 14 | . 3 10 14 13 14 17 19 18 16 13 13 10 Power . | . 1 2 2 . 1 . . . . 1 1 . Propulsion 3 | . 1 1 4 5 3 1 . . 1 4 7 8 Utility 8 | . . 3 3 3 7 15 19 18 13 5 2 1 Weapon 1 | . . 3 4 4 1 . . . . 1 1 1 Tool/Special . | . . . . . . . . . . . . . Unused Backups 25 | . . . 2 2 5 1 . . 8 . . 7 Power . | . . . . . . . . . . . . . Propulsion 13 | . . . 2 1 3 . . . . . . 7 Utility 10 | . . . . 1 . 1 . . 8 . . . Weapon 2 | . . . . . 2 . . . . . . . Tool/Special . | . . . . . . . . . . . . . Average Slot Usage (%) 79 | . 85 82 96 94 79 79 56 42 78 81 70 73 Engine 4 | . 8 2 14 12 4 . 3 5 3 . . . Core 2 | . 5 4 . . . 9 3 . . . . . Reactor 1 | . . . . . . . . . 5 8 8 6 Treads 12 | . 28 6 26 26 11 15 . . . . . 8 Leg 4 | . . 18 . . 7 2 11 10 6 . . 7 Hover 4 | . . . . . . . . . 12 25 24 5 Device 12 | . . 8 . 2 14 20 13 5 16 28 20 17 Storage 7 | . 14 14 14 13 5 5 5 5 4 4 4 4 Processor 3 | . . . . . 3 5 5 5 4 4 4 6 Protection 4 | . . . 13 11 4 1 4 . . . . . Energy Gun 4 | . 14 12 . . . 7 . 5 12 3 . . Ballistic Gun 3 | . 14 4 . . 17 . . . . . . 10 Ballistic Cannon 8 | . . . 23 26 5 4 7 5 2 . . . Peak Build Rating 180 | 6 8 12 19 31 72 88 73 47 146 158 150 180 Average Rating 68 | 5 6 8 17 20 57 77 66 47 110 144 136 148 On Entrance 50 | . 6 8 12 19 31 30 53 47 47 119 140 140 Avg Prop Armor Cover (%) 5 | . . 11 11 . . 3 . . 10 . . 7 Naked Turns 16 | . . . . 16 . . . . . . . . Heaviest Build 106 | 12 47 38 62 62 89 98 106 69 92 90 88 92 Greatest Support 106 | 40 40 40 40 50 98 106 80 40 72 83 85 104 Greatest Overweight (x) 4 | . 1 3 3 1 4 2 2 1 4 1 1 3 Average Overweight (x) . | . . 1 . . . . 1 1 . . . . Largest Inventory Capacity 20 | 8 20 15 20 20 20 20 20 20 20 15 15 15 Average Capacity 18 | 7 15 15 17 19 20 20 20 20 17 15 15 15 Most Carried 20 | 1 9 13 15 18 19 20 20 18 20 15 15 14 Average Carried 14 | . 3 10 14 14 15 17 19 18 17 14 14 11 Final Capacity 20 | 8 15 15 20 20 20 20 20 20 15 15 15 15 Final Carried 20 | 1 9 10 15 16 15 20 18 18 15 15 14 11 Scrap Suit Usage (%) 2 | . . . . . . . . . . . . 31 Parts Cannibalized 2 | . . . . . . . . . . . . 2 Class Distribution -------------------- 36% | Mutant 21% | Scavenger-Mutant 12% | Scavenger-Skirmisher 7% | Scavenger-Gunner 6% | Scavenger-Executioner 4% | Executioner 3% | Scavenger-Scout Dominant Class ---------------- Mutant | -10/Materials Scavenger-Mutant | -10/Subcaves Scavenger-Mutant | -7/Recycling Mutant | -7/Scraptown Executioner | -5/Factory Scavenger-Skirmisher | -4/Factory Mutant | -4/Upper Caves Mutant | -4/Upper Caves Scavenger-Executioner | -3/Research Scavenger-Scout | -2/Research Mutant | -2/Quarantine Scavenger-Gunner | -2/Protoforge Resources | -11 -10 -10 -7 -7 -5 -4 -4 -4 -3 -2 -2 -2 ----------- Run | Yrd Mat Sub Rec Scr Fac Fac Upp Upp Res Res Qua Frg Matter Collected 4826 | 147 209 134 80 . 1065 525 424 . 609 . 77 1556 Remotely . | . . . . . . . . . . . . . Salvage Created 5636 | . 264 236 75 . 1033 447 166 . 861 140 77 2337 Parts 306 | . 8 21 8 . 56 18 8 . 60 8 3 116 Haulers Intercepted 1 | . . . . . . . . . . . . 1 Recyclers Shooed . | . . . . . . . . . . . . . Parts Field Recycled . | . . . . . . . . . . . . . Retrieved Matter . | . . . . . . . . . . . . . Parts Self-Destructed 20 | . . 14 . . . . 6 . . . . . Prevented . | . . . . . . . . . . . . . Parts Restored . | . . . . . . . . . . . . . Kills | -11 -10 -10 -7 -7 -5 -4 -4 -4 -3 -2 -2 -2 ------- Run | Yrd Mat Sub Rec Scr Fac Fac Upp Upp Res Res Qua Frg Combat Hostiles Destroyed 87 | . 6 7 1 . 18 10 3 . 11 2 . 29 Guns 63 | . 5 6 . . 16 2 1 . 7 . . 26 Cannons 20 | . . 1 1 . 2 7 2 . 3 1 . 3 Classes Destroyed 23 | . 1 3 1 . 9 . . . 1 . 1 7 Worker 2 | . . . . . 1 1 . . . . . . Builder 2 | . . . . . 2 . . . . . . . Tunneler 1 | . . . . . 1 . . . . . . . Hauler 1 | . . . . . . . . . . . . 1 Recycler 1 | . . . . . 1 . . . . . . . Operator 2 | . . . . . . . . . 1 . . 1 Drone 1 | . . . . . . . . . . . . 1 Turret 2 | . . 2 . . . . . . . . . . Swarmer 12 | . . 4 . . 5 . . . . . . 3 Grunt 27 | . 6 . . . 4 3 3 . 3 . . 8 Brawler 1 | . . . . . 1 . . . . . . . Duelist 2 | . . . . . 1 . . . . . . 1 Protector 1 | . . . . . . . . . . . . 1 Researcher 1 | . . . . . . . . . . . 1 . Sentry 8 | . . . 1 . 2 3 . . 2 . . . Specialist 1 | . . . . . . . . . . . . 1 Hunter 3 | . . . . . 1 . . . . . . 2 Programmer 17 | . . . . . 3 4 . . 6 2 . 2 Behemoth 1 | . . . . . 1 . . . . . . . Immortal 2 | . . . . . . . . . . . . 2 Striker 6 | . . . . . . . . . . . . 6 Executioner 2 | . . . . . . . . . . . . 2 Subdweller 3 | . . 3 . . . . . . . . . . Elite 1 | . . . . . . . . . . . . 1 Best Kill Streak 8 | . 2 4 1 . 4 2 1 . 5 1 1 8 Combat Bots Only 8 | . 2 4 1 . 4 2 1 . 5 1 . 8 Max Kills in Single Turn 2 | . 1 1 1 . 2 2 1 . 1 1 1 2 Gunslinging 1 | . . . . . 1 . . . . . . 1 Exploded . | . . . . . . . . . . . . . Melee . | . . . . . . . . . . . . . Uniques/NPCs Destroyed . | . . . . . . . . . . . . . Combat | -11 -10 -10 -7 -7 -5 -4 -4 -4 -3 -2 -2 -2 -------- Run | Yrd Mat Sub Rec Scr Fac Fac Upp Upp Res Res Qua Frg Hostile Shots Fired 1568 | . 34 135 18 . 389 172 141 . 130 74 148 327 Missed 577 | . 10 56 3 . 137 47 43 . 51 37 76 117 Hits 991 | . 24 79 15 . 252 125 98 . 79 37 72 210 Melee 10 | . . . . . 4 2 . . 1 . . 3 Projectile 981 | . 24 79 15 . 248 123 98 . 78 37 72 207 Critical Strikes 48 | . . . . . 9 9 8 . 6 2 4 10 Actively Blocked 16 | . . . . . . . . . 3 . 3 10 Part Disruptions 4 | . . . . . . 1 . . 1 1 1 . Damage Taken 19520 | . 306 861 106 . 4192 2309 1505 . 1870 861 1722 5788 Core 2652 | . 17 179 21 . 444 107 191 . 218 85 195 1195 Absorbed by Shields 382 | . . . . . 42 . 302 . . . 38 . Ignored by Resistances 1342 | . . . . . 439 145 83 . . . . 675 Regen/Repaired (Parts) 382 | . . . . . . . . . . . 115 267 Core Remaining (%) 65 | 100 . . . 13 55 . . 74 83 . . . Volleys Fired 353 | . 22 42 4 . 58 59 30 . 43 21 6 68 Largest 5 | . 2 2 2 . 5 3 2 . 4 2 2 5 Hottest 324 | . 70 140 140 . 153 179 99 . 324 240 240 187 Shots Fired 802 | . 44 70 7 . 206 85 35 . 88 31 10 226 Gun 588 | . 44 52 3 . 172 26 6 . 63 7 . 215 Cannon 198 | . . 18 3 . 34 53 29 . 16 24 10 11 Launcher . | . . . . . . . . . . . . . Special 16 | . . . 1 . . 6 . . 9 . . . Kinetic 564 | . 22 23 . . 206 53 29 . 16 . . 215 Thermal 209 | . 22 47 7 . . 12 6 . 63 31 10 11 Explosive . | . . . . . . . . . . . . . Electromagnetic 20 | . . . . . . 20 . . . . . . Robot Hit Streak 23 | . 13 12 4 . 13 23 3 . 17 4 3 10 Robot Miss Streak 6 | . 1 3 1 . 6 4 4 . 3 3 3 6 Penetration Max 2 | . . . . . 1 . . . . . . 2 Secondary Targets 19 | . . . . . 3 . . . 4 . . 12 Max Gunslinging Chain 2 | . . . . . 1 . . . 1 . . 2 Shots Hit Robots 495 | . 35 49 5 . 118 58 16 . 56 10 2 146 Core Hits 209 | . 12 16 2 . 52 21 7 . 19 1 3 76 Critical Kills 19 | . . . . . 2 . 2 . 7 1 . 7 Critical Parts Destroyed 30 | . 2 . . . 1 . 3 . 12 . . 12 Critical Strikes 66 | . 5 1 . . 6 8 5 . 20 1 . 20 Burn 3 | . 3 . . . . . . . . . . . Meltdown 1 | . . . . . . . . . . 1 . . Destroy 51 | . 2 1 . . 3 . 5 . 20 . . 20 Blast 11 | . . . . . 3 8 . . . . . . Melee Attacks 4 | . . . . . . . . . . . . 4 Impact . | . . . . . . . . . . . . . Slashing 4 | . . . . . . . . . . . . 4 Piercing . | . . . . . . . . . . . . . Sneak Attacks . | . . . . . . . . . . . . . Combat Hostiles . | . . . . . . . . . . . . . Follow-up Attacks . | . . . . . . . . . . . . . Damage Inflicted 15728 | . 455 832 120 . 2747 1976 407 . 1416 433 260 7082 Guns 11942 | . 455 526 65 . 2262 396 85 . 1207 115 . 6831 Cannons 3428 | . . 306 55 . 441 1495 322 . 209 308 123 169 Explosions 84 | . . . . . . 84 . . . . . . Melee 82 | . . . . . . . . . . . . 82 Ramming 192 | . . . . . 44 1 . . . 10 137 . Kinetic 11967 | . 189 218 . . 2703 1495 322 . 209 . . 6831 Thermal 3043 | . 266 614 120 . . 36 85 . 1207 423 123 169 Explosive 84 | . . . . . . 84 . . . . . . Electromagnetic 360 | . . . . . . 360 . . . . . . Impact . | . . . . . . . . . . . . . Slashing 82 | . . . . . . . . . . . . 82 Piercing . | . . . . . . . . . . . . . Highest Corruption 21 | . . . . . 3 3 3 3 8 8 20 21 Average Corruption 8 | . . . . . 2 3 3 3 3 5 12 20 Corruption Purged 6 | . . . . . . . . . . . 6 . Corruption Blocked . | . . . . . . . . . . . . . Effects 112 | . . . . . 10 . 21 . 5 11 16 49 Message Errors 29 | . . . . . 2 . 8 . 2 4 3 10 Matter Fused 21 | . . . . . 2 . 2 . . 1 2 14 Heat Flow Errors 14 | . . . . . 2 . 4 . . 2 2 4 Energy Discharges 10 | . . . . . . . . . . 2 1 7 Parts Rejected 1 | . . . . . 1 . . . . . . . Parts Fused 1 | . . . . . . . . . . . . 1 Data Loss (minor) 12 | . . . . . 2 . 4 . 1 1 2 2 Data Loss (major) 5 | . . . . . . . 2 . 2 . . 1 Misfires 4 | . . . . . . . 1 . . . 2 1 Alerts 1 | . . . . . . . . . . . 1 . Misdirections 4 | . . . . . . . . . . . 3 1 Weapon Failures 10 | . . . . . 1 . . . . 1 . 8 Overload Shots . | . . . . . . . . . . . . . Overflow Damage 182 | . . 33 . . . 7 . . . 94 38 10 Projectiles 146 | . . 33 . . . 7 . . . 94 2 10 Explosions . | . . . . . . . . . . . . . Melee 36 | . . . . . . . . . . . 36 . Knockbacks 16 | . . . . . 1 4 5 . 4 . 2 . Impact 2 | . . . . . . . . . . . 2 . Kinetic 14 | . . . . . 1 4 5 . 4 . . . Secondary . | . . . . . . . . . . . . . Self-Inflicted Damage 73 | . . . . . . . . . . 5 68 . Shots . | . . . . . . . . . . . . . Rammed 6 | . . . . . . 1 . . . 1 4 . Targets Rammed 7 | . . . . . 1 1 . . . 1 4 . Kicked 1 | . . . . . 1 . . . . . . . Crushed . | . . . . . . . . . . . . . Highest Temperature 424 | . 174 186 182 . 261 215 242 . 424 228 249 138 Average Temperature 89 | . 63 78 81 . 65 117 44 . 152 98 77 52 Received Heat Transfer 2358 | . 174 339 24 . 487 391 448 . 183 18 99 195 Effects 2 | . . . . . . . . . 2 . . . Energy Bleed 1 | . . . . . . . . . 1 . . . Interference 1 | . . . . . . . . . 1 . . . Siege Activations . | . . . . . . . . . . . . . Martial Activations . | . . . . . . . . . . . . . Shielding Activations . | . . . . . . . . . . . . . Robots Disrupted 1 | . . . . . . 1 . . . . . . Combat Hostiles 1 | . . . . . . 1 . . . . . . Robots Corrupted . | . . . . . . . . . . . . . Combat Hostiles . | . . . . . . . . . . . . . Parts Fried . | . . . . . . . . . . . . . Impact Corruptions 2 | . . . . . . . . . . . 2 . Robots Melted 3 | . 1 . . . . . . . 1 1 . . Combat Hostiles 3 | . 1 . . . . . . . 1 1 . . Parts Melted 20 | . 3 1 . . . . . . 11 5 . . Heat Transferred 4660 | . 962 1005 149 . . 74 200 . 1641 370 111 148 Parts Sabotaged . | . . . . . . . . . . . . . Parts Stolen . | . . . . . . . . . . . . . Parts Stripped . | . . . . . . . . . . . . . Power Chain Reactions . | . . . . . . . . . . . . . Alert | -11 -10 -10 -7 -7 -5 -4 -4 -4 -3 -2 -2 -2 ------- Run | Yrd Mat Sub Rec Scr Fac Fac Upp Upp Res Res Qua Frg Maximum Alert Level 2 | . . . . . 2 1 . . . 1 1 2 Low Security (%) 72 | 100 100 . 100 . 53 72 . . 100 95 72 6 Level 1 14 | . . . . . 5 27 . . . 4 27 50 Level 2 12 | . . . . . 41 . . . . . . 43 Level 3 . | . . . . . . . . . . . . . Level 4 . | . . . . . . . . . . . . . Level 5 . | . . . . . . . . . . . . . High Security . | . . . . . . . . . . . . . Max Security . | . . . . . . . . . . . . . Peak Influence 663 | . 42 . 107 . 663 289 . . 153 213 386 633 Initial 289 | . . . 86 . . 289 . . . 69 110 216 Average 152 | . 8 . 18 . 281 176 . . 17 64 158 386 Influence Increases 4764 | . 152 240 29 . 1276 473 120 . 432 447 584 1011 Destroy 0b10 Robot/C 1800 | . 120 120 20 . 460 200 60 . 220 40 20 540 Destroy 0b10 Robot/NC 125 | . . . . . 95 5 . . 5 . . 20 Destroy Leader 316 | . 20 . . . 116 60 . . 40 20 . 60 Allied During Kill 33 | . . . . . 33 . . . . . . . Successful Hack 70 | . 11 . 7 . 24 . . . . 12 . 16 Disable Machine 405 | . . . . . 270 60 . . . . 45 30 Destroy Structure 365 | . 1 . 2 . 98 88 . . 2 45 9 120 Partial Spotted 105 | . . . . . . . . . 15 60 15 15 Lose Combat Pursuer 1545 | . . 120 . . 180 60 60 . 150 270 495 210 Influence Decreases 4223 | . 152 60 209 . 686 963 217 3 309 373 395 856 Entered New Map 745 | . . . 94 . . 301 37 2 . 54 87 170 Time Decay 2402 | . 152 40 115 . 426 522 94 1 219 249 198 386 Lost Part 1063 | . . 20 . . 260 140 73 . 90 70 110 300 Lost Ally 13 | . . . . . . . 13 . . . . . Squads Dispatched 37 | . 2 . . . 8 5 . . 8 5 4 5 Investigation 6 | . 1 . . . 1 . . . 1 1 . 2 Extermination 12 | . . . . . 2 3 . . 2 2 3 . Reinforcement 11 | . 1 . . . . 2 . . 2 2 1 3 Assault 2 | . . . . . 2 . . . . . . . Garrison 6 | . . . . . 3 . . . 3 . . . Intercept . | . . . . . . . . . . . . . Searches Triggered . | . . . . . . . . . . . . . Construction Impeded . | . . . . . . . . . . . . . Haulers Reinforced . | . . . . . . . . . . . . . Active Scanning Responses . | . . . . . . . . . . . . . Cargo Convoy Interrupts 1 | . . . . . . . . . 1 . . . Stealth | -11 -10 -10 -7 -7 -5 -4 -4 -4 -3 -2 -2 -2 --------- Run | Yrd Mat Sub Rec Scr Fac Fac Upp Upp Res Res Qua Frg Distress Signals 12 | . 1 . . . 2 . . . 3 1 3 2 Communications Jammed . | . . . . . . . . . . . . . Distress Signals . | . . . . . . . . . . . . . Times Spotted 331 | . 10 12 1 . 49 23 11 . 42 15 36 132 Peak Tracking Total 19 | . 3 3 1 . 9 8 11 . 13 7 19 16 Tactical Retreats 41 | . . 3 . . 6 2 3 . 5 8 10 4 ECM-based Alert Blocks 5 | . . . . . . . . . 5 . . . Traps | -11 -10 -10 -7 -7 -5 -4 -4 -4 -3 -2 -2 -2 ------- Run | Yrd Mat Sub Rec Scr Fac Fac Upp Upp Res Res Qua Frg Traps Triggered 4 | . 1 . . . 1 . . . . . 2 . Indirectly . | . . . . . . . . . . . . . Trap Hack Attempts . | . . . . . . . . . . . . . Triggered . | . . . . . . . . . . . . . Disarmed . | . . . . . . . . . . . . . Reprogrammed . | . . . . . . . . . . . . . Reused . | . . . . . . . . . . . . . Traps Extracted . | . . . . . . . . . . . . . Installed . | . . . . . . . . . . . . . Triggered . | . . . . . . . . . . . . . Machines | -11 -10 -10 -7 -7 -5 -4 -4 -4 -3 -2 -2 -2 ---------- Run | Yrd Mat Sub Rec Scr Fac Fac Upp Upp Res Res Qua Frg Machines Disabled 30 | . . 2 . . 18 4 . . . . 3 3 Max in Single Turn 3 | . . 1 . . 1 3 . . . . 1 1 Machines Repaired . | . . . . . . . . . . . . . Machines Dismantled . | . . . . . . . . . . . . . Machines Sabotaged . | . . . . . . . . . . . . . Overloaded Fab Kills . | . . . . . . . . . . . . . Hacking | -11 -10 -10 -7 -7 -5 -4 -4 -4 -3 -2 -2 -2 --------- Run | Yrd Mat Sub Rec Scr Fac Fac Upp Upp Res Res Qua Frg Machines Accessed 44 | . 4 . 6 2 5 3 1 . 8 6 3 6 Terminals 22 | . 4 . 4 . 2 2 . . 3 3 1 3 Fabricators . | . . . . . . . . . . . . . Repair Stations . | . . . . . . . . . . . . . Recycling Units 13 | . . . 2 . 2 1 . . 4 1 . 3 Scanalyzers 2 | . . . . . . . . . . 1 1 . Garrison Access 4 | . . . . . 1 . . . 1 1 1 . Total Hacks 88 | . 8 . 13 20 8 5 1 . 10 8 3 12 Successful 38 | . 3 . 3 20 3 2 1 . 2 2 . 2 Failed 50 | . 5 . 10 . 5 3 . . 8 6 3 10 Catastrophic 23 | . 3 . 3 . . 1 . . 6 4 3 3 Database Lockouts . | . . . . . . . . . . . . . Manual 43 | . 8 . 9 . 5 3 . . 6 2 . 10 Terminals 36 | . 8 . 9 . 4 3 . . 3 4 1 4 Fabricators . | . . . . . . . . . . . . . Repair Stations . | . . . . . . . . . . . . . Recycling Units 22 | . . . 4 . 2 2 . . 5 1 . 8 Scanalyzers 3 | . . . . . . . . . . 2 1 . Garrison Access 6 | . . . . . 2 . . . 2 1 1 . Terminal Hacks 27 | . 2 . 2 20 . . 1 . . 1 . 1 Record 21 | . . . . 20 . . 1 . . . . . Robot Analysis 3 | . 2 . 1 . . . . . . . . . Open Door 1 | . . . . . . . . . . 1 . . Zone Layout 2 | . . . 1 . . . . . . . . 1 Fabricator Hacks . | . . . . . . . . . . . . . Repair Station Hacks . | . . . . . . . . . . . . . Recycling Unit Hacks 5 | . . . 1 . 1 2 . . 1 . . . Retrieve Components 5 | . . . 1 . 1 2 . . 1 . . . Scanalyzer 1 | . . . . . . . . . . 1 . . Retrieve Study 1 | . . . . . . . . . . 1 . . Garrison Access Hacks . | . . . . . . . . . . . . . Unauthorized Hacks 5 | . 1 . . . 2 . . . 1 . . 1 Terminals 2 | . 1 . . . 1 . . . . . . . Botnet 2 | . 1 . . . 1 . . . . . . . Fabricators . | . . . . . . . . . . . . . Repair Stations . | . . . . . . . . . . . . . Recycling Units 3 | . . . . . 1 . . . 1 . . 1 Fedlink 3 | . . . . . 1 . . . 1 . . 1 Scanalyzers . | . . . . . . . . . . . . . Garrison Access . | . . . . . . . . . . . . . Data Cores Recovered . | . . . . . . . . . . . . . Used . | . . . . . . . . . . . . . Hacking Detections 35 | . 3 . 5 . 4 2 . . 7 6 3 5 Full Trace Events 2 | . . . . . . . . . . 1 . 1 Feedback Events . | . . . . . . . . . . . . . Feedback Blocked . | . . . . . . . . . . . . . Robot Schematics Acquired 1 | . . . . . . . . . . . 1 . Robots Built . | . . . . . . . . . . . . . Authchips . | . . . . . . . . . . . . . Time . | . . . . . . . . . . . . . Total Robot Build Rating . | . . . . . . . . . . . . . Part Schematics Acquired 1 | . . . . . . . . . . . 1 . Parts Built . | . . . . . . . . . . . . . Authchips . | . . . . . . . . . . . . . Time . | . . . . . . . . . . . . . Total Part Build Rating . | . . . . . . . . . . . . . Part Studies Acquired 1 | . . . . . . . . . . 1 . . Parts Repaired . | . . . . . . . . . . . . . Time . | . . . . . . . . . . . . . Parts Recycled . | . . . . . . . . . . . . . Recycled Matter . | . . . . . . . . . . . . . Retrieved Matter . | . . . . . . . . . . . . . Retrieved Components 1 | . . . . . . . . . 1 . . . Parts Scanalyzed . | . . . . . . . . . . . . . Part Schematics Acquired . | . . . . . . . . . . . . . Parts Damaged . | . . . . . . . . . . . . . Bothacking | -11 -10 -10 -7 -7 -5 -4 -4 -4 -3 -2 -2 -2 ------------ Run | Yrd Mat Sub Rec Scr Fac Fac Upp Upp Res Res Qua Frg Used RIF Installer . | . . . . . . . . . . . . . Robots Hacked 4 | . . . . . . . . . 4 . . . Non-combat 1 | . . . . . . . . . 1 . . . Combat . | . . . . . . . . . . . . . Robot Hacks Applied 1 | . . . . . . . . . 1 . . . parse_system 1 | . . . . . . . . . 1 . . . Manual 4 | . . . . . . . . . 4 . . . Relay Couplers Released . | . . . . . . . . . . . . . Fabnet Peak Effective % . | . . . . . . . . . . . . . Robots Rewired . | . . . . . . . . . . . . . Allies Hacked . | . . . . . . . . . . . . . Hacks Repelled . | . . . . . . . . . . . . . Allies | -11 -10 -10 -7 -7 -5 -4 -4 -4 -3 -2 -2 -2 -------- Run | Yrd Mat Sub Rec Scr Fac Fac Upp Upp Res Res Qua Frg Total Allies 2 | . . . . . 2 . . . . . . . Largest Group 1 | . . . . . 1 . . . . . . . Highest-Rated Group 53 | . . . . . 53 . . . . . . . Highest-Rated Ally 53 | . . . . . 53 . . . . . . . Initial UFD Resources 67 | . . . . . 38 50 50 50 53 67 67 67 Total Orders 12 | . . . . . . . 11 . 1 . . . STAY 2 | . . . . . . . 2 . . . . . ROAM 1 | . . . . . . . 1 . . . . . EXPLORE 6 | . . . . . . . 6 . . . . . RETURN 3 | . . . . . . . 2 . 1 . . . Ally Attacks 28 | . . . . . 28 . . . . . . . Total Damage 2511 | . . . . . 2511 . . . . . . . Kills 19 | . . . . . 19 . . . . . . . Allies Corrupted . | . . . . . . . . . . . . . Allies Melted . | . . . . . . . . . . . . . Intel | -11 -10 -10 -7 -7 -5 -4 -4 -4 -3 -2 -2 -2 ------- Run | Yrd Mat Sub Rec Scr Fac Fac Upp Upp Res Res Qua Frg Active Infowar (turns) 4649 | . . . . 76 . 1429 277 . 1089 580 388 810 Optics 670 | . . . . . . . . . . . . 670 Sensors 3483 | . . . . 76 . 1029 277 . 994 579 388 140 Structural 1830 | . . . . 11 . 743 . . 365 552 159 . Cloaking 613 | . . . . . . 285 . . 328 . . . Jamming 8 | . . . . . . 8 . . . . . . ECM 96 | . . . . . . 1 . . 95 . . . Robot Analysis Total 3 | . 2 . 1 . . . . . . . . . Derelict Logs Recovered 4 | . . . . 3 . . 1 . . . . . Drone Launches 9 | . . . . . . . 8 . 1 . . . Drone Recoveries 5 | . . . . . . . 4 . 1 . . . Exploration | -11 -10 -10 -7 -7 -5 -4 -4 -4 -3 -2 -2 -2 ------------- Run | Yrd Mat Sub Rec Scr Fac Fac Upp Upp Res Res Qua Frg Turns Passed 10851 | 81 725 315 654 1903 1262 1445 1308 56 1196 580 407 919 Spaces Moved 6112 | 44 314 99 260 930 609 537 482 30 779 706 691 631 Core 204 | 2 . . . 202 . . . . . . . . Treads 2365 | 42 314 15 246 728 311 532 . . . . . 177 Legs 1193 | . . 73 . . 298 5 482 30 207 . . 98 Wheels 25 | . . 11 14 . . . . . . . . . Hover 2325 | . . . . . . . . . 572 706 691 356 Flight . | . . . . . . . . . . . . . Fastest Speed 40 | 50 160 125 110 50 120 160 123 190 40 43 44 43 Average Speed 137 | 155 182 178 224 196 159 179 226 190 95 53 50 97 Slowest Speed 400 | 160 240 190 240 240 400 320 270 190 400 137 135 260 Overloaded Moves . | . . . . . . . . . . . . . Propulsion Burnouts . | . . . . . . . . . . . . . Robots Hopped . | . . . . . . . . . . . . . Potential Cave-ins 2 | . . . . . . . . . . 2 . . Cave-ins Triggered . | . . . . . . . . . . . . . Exploration Rate (%) 33 | 3 56 6 47 68 17 11 79 5 21 19 73 35 Regions Visited 12 Branch Regions 7 Pre-discovered Areas 8 | . . . . 7 . . . . 1 . . . Known Exits Taken 7 | . . . . . 1 1 1 1 1 1 1 . Unknown Exits Taken 5 | 1 1 1 1 1 . . . . . . . . Scrap Searched 6 | . . . . 1 . . 5 . . . . . Spaces Dug 18 | . . . 1 . 1 2 . . 1 11 1 1 Terrain Destroyed 185 | . . 2 2 . 16 59 17 . 1 17 3 68 Melee 1 | . . . . . . . . . . . . 1 Projectile 145 | . . 2 2 . 16 20 17 . 1 17 3 67 AOE 39 | . . . . . . 39 . . . . . . Terrain Rammed . | . . . . . . . . . . . . . Walls Destroyed . | . . . . . . . . . . . . . Machines Disabled . | . . . . . . . . . . . . . Actions | -11 -10 -10 -7 -7 -5 -4 -4 -4 -3 -2 -2 -2 --------- Run | Yrd Mat Sub Rec Scr Fac Fac Upp Upp Res Res Qua Frg Total 7916 | 54 420 166 324 1003 772 924 660 29 1169 875 742 778 Wait 1008 | 4 74 8 39 40 28 278 129 . 247 116 19 26 Move 6101 | 43 313 98 259 929 608 537 481 29 778 705 690 631 Hop . | . . . . . . . . . . . . . Pick Up 110 | 1 6 8 6 18 29 10 2 . 18 4 6 2 Fast Attach 114 | 6 2 2 5 6 12 12 8 . 23 5 3 30 Attach 75 | . . 7 . 2 21 11 4 . 9 8 7 6 Detach 16 | . 1 . 2 . 1 7 . . 3 2 . . Swap 47 | . 1 1 3 1 2 6 4 . 20 7 1 1 Drop 77 | . 1 . 6 7 12 4 2 . 28 6 1 10 Fire 353 | . 22 42 4 . 58 59 30 . 43 21 6 68 Melee 4 | . . . . . . . . . . . . 4 Ram 5 | . . . . . . . . . . 1 4 . Kick 1 | . . . . . 1 . . . . . . . Crush . | . . . . . . . . . . . . . Escape Stasis 5 | . . . . . . . . . . . 5 . Rewire . | . . . . . . . . . . . . . Trap . | . . . . . . . . . . . . . Miscellaneous . | . . . . . . . . . . . . . Route ------- -11/Scrapyard -10/Materials (discovered 4 exits: [*Mat x2] / [*Min] / [*Sub]) -10/Subcaves -7/Recycling -7/Scraptown -5/Factory (discovered 3 exits: *Fac / Upp x2) -4/Factory (discovered 3 exits: Res x2 / *Upp) -4/Upper Caves -4/Upper Caves (discovered 2 exits: *Res / Zhi) -3/Research (discovered 2 exits: *Res / Tes) -2/Research -2/Quarantine (discovered 3 exits: [*Acc] / [*Sec] / *Frg) -2/Protoforge History --------- Turn | Location | Event 9 | -11/Scrapyard | Discovered new exit (range 15) 82 | -11/Scrapyard | Entered Materials 315 | -10/Materials | Build established: Mutant 336 | -10/Materials | Discovered new exit (range 5) 685 | -10/Materials | Discovered new exit (range 6) 725 | -10/Materials | Discovered new exit (range 15) 793 | -10/Materials | Discovered new exit (range 4) 807 | -10/Materials | Entered Subcaves 808 | -10/Subcaves | Approached by a straggling Scientist 921 | -10/Subcaves | Lost 6 parts (1p2n3w) 1046 | -10/Subcaves | Discovered new exit (range 10) 1047 | -10/Subcaves | Core integrity fell below 50% 1122 | -10/Subcaves | Entered Recycling 1134 | -7/Recycling | Core integrity fell below 20% 1200 | -7/Recycling | Build established: Scavenger-Mutant 1709 | -7/Recycling | Scanned before Scraplab entrance 1752 | -7/Recycling | Entered Scraplab 1771 | -7/Recycling | Discovered new exit (range 3) 1776 | -7/Recycling | Entered Scraptown 2228 | -7/Scraptown | Visited Fellowship of the Rings 2327 | -7/Scraptown | Heard Great Nut preacher, LISTEN AND RECITE! 2382 | -7/Scraptown | Scanned Subdweller tech in exchange for log data 2387 | -7/Scraptown | Learned 8 Research zone layouts 2389 | -7/Scraptown | Learned location of Quarantine (-2) 2391 | -7/Scraptown | Learned location of Zion (-6) 2499 | -7/Scraptown | Visited SPCMW 2660 | -7/Scraptown | Visited UFD Registry 2660 | -7/Scraptown | Registered with UFD as "Nukedisc" 2706 | -7/Scraptown | Visited Chapter 10 2718 | -7/Scraptown | Build established: Mutant 2739 | -7/Scraptown | Visited Curators Association 2809 | -7/Scraptown | Visited Scrapoid Pod Storage 2840 | -7/Scraptown | Visited Botcube Research 2859 | -7/Scraptown | Found Botcube 2926 | -7/Scraptown | Visited Infowarlord's Domain 2936 | -7/Scraptown | Found Exp. Sensor Array 3010 | -7/Scraptown | Visited Cartography Club 3051 | -7/Scraptown | Visited Scrap Suit Storage 3089 | -7/Scraptown | Visited Abandonware Association 3144 | -7/Scraptown | Learned abandonware demo "SHUTEYE.EXE" 3211 | -7/Scraptown | Visited LU-1G1's Boring Crew 3345 | -7/Scraptown | Released all parts (7) 3362 | -7/Scraptown | Found Surveybot 17 Chip 3426 | -7/Scraptown | Found Deep Structural Scanner 3432 | -7/Scraptown | Learned location of Recycling (-7) 3432 | -7/Scraptown | Learned location of Upper Caves (-5) 3432 | -7/Scraptown | Learned location of Warlord (-5) 3432 | -7/Scraptown | Learned location of Hub_04(d) (-6) 3432 | -7/Scraptown | Learned 12 Materials zone layouts 3432 | -7/Scraptown | Learned 12 Factory zone layouts 3432 | -7/Scraptown | Learned 12 Lower Caves zone layouts 3432 | -7/Scraptown | Learned 16 Lower Caves zone layouts 3432 | -7/Scraptown | Learned 4 Hub_04(d) zone layouts 3432 | -7/Scraptown | Learned 4 Armory zone layouts 3432 | -7/Scraptown | Learned location of 1 exit from Upper Caves 3432 | -7/Scraptown | Learned location of 3 exits from Upper Caves 3432 | -7/Scraptown | Learned location of 1 exit from Proximity Caves 3563 | -7/Scraptown | Met Optimus 3563 | -7/Scraptown | Accepted into 0bPrime 3674 | -7/Scraptown | Discovered new exit (range 3) 3679 | -7/Scraptown | Entered Factory 3679 | -5/Factory | Evolved 10 slots: Propulsion x2, Utility x4, Weapon x4 3680 | -5/Factory | Identified exit to Upper Caves 3681 | -5/Factory | Identified exit to Factory 3784 | -5/Factory | Garrison activated, responded to threat 4127 | -5/Factory | Build established: Executioner 4219 | -5/Factory | Botcube activated 4231 | -5/Factory | Botcube completed mutation into hovering form, armed with 2 cannons 4270 | -5/Factory | Lost 4 parts (2n1u1w) 4450 | -5/Factory | Lost 4 parts (1n1u2w) 4490 | -5/Factory | Found Botcube 4500 | -5/Factory | Lost 6 parts (1p2n3w) 4569 | -5/Factory | Loaded intel: 8 recycling unit locations 4579 | -5/Factory | First assault squad dispatched 4786 | -5/Factory | Spotted B-75 Beast 4832 | -5/Factory | Botcube activated 4840 | -5/Factory | Botcube completed mutation into legged form (unarmed) 4846 | -5/Factory | Destroyed B-75 Beast 4870 | -5/Factory | Lost 3 parts (1n1u1w) 4941 | -5/Factory | Entered another Factory area 4941 | -4/Factory | Evolved 2 slots: Power x1, Utility x1 4942 | -4/Factory | Identified exit to Research 4967 | -4/Factory | Lost 8 parts (1p3n2u2w) 5714 | -4/Factory | Lost 3 parts (1p2w) 5722 | -4/Factory | Build established: Scavenger-Skirmisher 6343 | -4/Factory | Discovered new exit (range 5) 6383 | -4/Factory | Identified exit to Upper Caves 6386 | -4/Factory | Entered Upper Caves 6387 | -4/Upper Caves | Encountered a Warlord checkpoint 6387 | -4/Upper Caves | Identified exit to Upper Caves 6415 | -4/Upper Caves | Lost 7 parts (2p2n3w) 6616 | -4/Upper Caves | Entered a destroyed Warlord outpost 6681 | -4/Upper Caves | Build established: Mutant 6741 | -4/Upper Caves | Learned Research emergency access door positions 7529 | -4/Upper Caves | Lost 7 parts (1p4u2w) 7624 | -4/Upper Caves | Attracted the attention of an 0b10 outpost 7694 | -4/Upper Caves | Entered another Upper Caves area 7695 | -4/Upper Caves | Identified exit to Zhirov 7707 | -4/Upper Caves | Lost 4 parts (1p2n1u) 7750 | -4/Upper Caves | Entered Research 7750 | -3/Research | Evolved 2 slots: Propulsion x2 7751 | -3/Research | Identified exit to Testing 8342 | -3/Research | Garrison activated, responded to threat 8346 | -3/Research | Cargo convoy interrupted 8425 | -3/Research | Lost 4 parts (1p1n1u1w) 8693 | -3/Research | Build established: Scavenger-Executioner 8843 | -3/Research | Spotted B-86 Titan 8933 | -3/Research | Loaded intel: 5 recycling unit locations 8933 | -3/Research | Learned location of Protoforge (-2) 8942 | -3/Research | Discovered new exit (range 10) 8945 | -3/Research | Identified exit to Research 8946 | -3/Research | Entered another Research area 8946 | -2/Research | Evolved 2 slots: Utility x2 8947 | -2/Research | Identified exit to Quarantine 8975 | -2/Research | Lost 3 parts (1n2w) 9237 | -2/Research | Build established: Scavenger-Scout 9468 | -2/Research | Lost 6 parts (1n4u1w) 9526 | -2/Research | Entered Quarantine 9649 | -2/Quarantine | Discovered new exit (range 8) 9695 | -2/Quarantine | Found Alien Artifact 9695 | -2/Quarantine | Identified Phase Redirector 9713 | -2/Quarantine | Scanned by Researcher 9737 | -2/Quarantine | System corruption reached 10% 9794 | -2/Quarantine | Found Alien Slashing Weapon 9794 | -2/Quarantine | Identified Sigix Broadsword 9814 | -2/Quarantine | Lost 9 parts (1n6u2w) 9864 | -2/Quarantine | Found Alien Artifact 9886 | -2/Quarantine | Spotted Fortress 9916 | -2/Quarantine | Discovered new exit (range 6) 9916 | -2/Quarantine | Discovered new exit (range 7) 9918 | -2/Quarantine | Identified exit to Protoforge 9933 | -2/Quarantine | Entered Protoforge 9938 | -2/Protoforge | Superfortress began startup sequence 9998 | -2/Protoforge | Identified Subatomic Replicator 9998 | -2/Protoforge | Used Subatomic Replicator to replicate Sigix Broadsword 10022 | -2/Protoforge | Build established: Mutant 10056 | -2/Protoforge | Spotted AP7-3 10056 | -2/Protoforge | Spotted AP7-3 10056 | -2/Protoforge | Spotted Overlord 10056 | -2/Protoforge | Spotted Hotshot 10056 | -2/Protoforge | Spotted Hotshot 10056 | -2/Protoforge | Spotted Hotshot 10084 | -2/Protoforge | Spotted EXE-6 10084 | -2/Protoforge | Spotted EXE-6 10105 | -2/Protoforge | Core integrity fell below 50% 10105 | -2/Protoforge | UFD initiated attack on Protoforge (Readiness: Low) 10105 | -2/Protoforge | Loaded intel: 3 recycling unit locations 10159 | -2/Protoforge | Optimus greeted in Protoforge 10162 | -2/Protoforge | Found Prototype Processor 10162 | -2/Protoforge | Identified Exp. Core Analyzer 10164 | -2/Protoforge | Lost 12 parts (3p4n3u2w) 10169 | -2/Protoforge | Found Prototype Ballistic Gun 10169 | -2/Protoforge | Identified Cep. XC Strikerail 10182 | -2/Protoforge | Spotted Decapitator 10183 | -2/Protoforge | Spotted Decapitator 10185 | -2/Protoforge | Found Prototype Device 10185 | -2/Protoforge | Identified Exp. Kinecellerator 10202 | -2/Protoforge | Found Scrap Suit 10212 | -2/Protoforge | Lost 22 allies 10226 | -2/Protoforge | Found 0bPrime Scrap Suit 10236 | -2/Protoforge | Met 7R-MNS 10283 | -2/Protoforge | Lost 3 allies 10384 | -2/Protoforge | Spotted Striker 10385 | -2/Protoforge | Spotted Striker 10388 | -2/Protoforge | Spotted Striker 10390 | -2/Protoforge | Spotted Striker 10394 | -2/Protoforge | Destroyed Striker 10394 | -2/Protoforge | Destroyed Striker 10409 | -2/Protoforge | Destroyed Striker 10433 | -2/Protoforge | Build established: Scavenger-Gunner 10441 | -2/Protoforge | Lost 4 allies 10442 | -2/Protoforge | Spotted Executioner 10446 | -2/Protoforge | Spotted Striker 10447 | -2/Protoforge | Spotted Immortal 10449 | -2/Protoforge | Spotted Immortal 10452 | -2/Protoforge | Destroyed Striker 10478 | -2/Protoforge | Spotted Executioner 10478 | -2/Protoforge | Spotted Executioner 10479 | -2/Protoforge | Spotted Striker 10488 | -2/Protoforge | Spotted Striker 10494 | -2/Protoforge | Destroyed Striker 10498 | -2/Protoforge | Destroyed Executioner 10511 | -2/Protoforge | Spotted Executioner 10514 | -2/Protoforge | Spotted Striker 10518 | -2/Protoforge | Spotted Immortal 10520 | -2/Protoforge | Spotted Immortal 10523 | -2/Protoforge | Spotted Immortal 10528 | -2/Protoforge | Lost 10 allies 10539 | -2/Protoforge | UFD reported confirmed Drillbomb installation 10547 | -2/Protoforge | Lost 3 parts (1n2w) 10561 | -2/Protoforge | P-80 Master assimilated allied Lugger 745 10619 | -2/Protoforge | Lost 15 allies 10636 | -2/Protoforge | Spotted Executioner 10637 | -2/Protoforge | Spotted Executioner 10645 | -2/Protoforge | Spotted Striker 10650 | -2/Protoforge | Spotted Executioner 10683 | -2/Protoforge | Lost 3 parts (1p1n1w) 10695 | -2/Protoforge | Destroyed Striker 10700 | -2/Protoforge | Spotted Executioner 10702 | -2/Protoforge | Destroyed Executioner 10706 | -2/Protoforge | Spotted Striker 10733 | -2/Protoforge | Lost 16 allies 10734 | -2/Protoforge | Destroyed 8 combat bots 10734 | -2/Protoforge | Spotted Immortal 10737 | -2/Protoforge | Spotted Immortal 10740 | -2/Protoforge | Spotted Immortal 10747 | -2/Protoforge | Lost 4 parts (2p1n1w) 10773 | -2/Protoforge | Destroyed Immortal 10773 | -2/Protoforge | Destroyed Immortal 10797 | -2/Protoforge | Spotted Executioner 10798 | -2/Protoforge | Spotted Striker 10809 | -2/Protoforge | Spotted Executioner 10812 | -2/Protoforge | Spotted Striker 10819 | -2/Protoforge | Core integrity fell below 20% 10823 | -2/Protoforge | Spotted Hotshot 10825 | -2/Protoforge | Spotted Hotshot 10827 | -2/Protoforge | Spotted Executioner 10828 | -2/Protoforge | Spotted Striker 10829 | -2/Protoforge | Spotted Hotshot 10830 | -2/Protoforge | Spotted Hotshot 10849 | -2/Protoforge | P-80 Master assimilated allied RB-TVX(E) 10852 | -2/Protoforge | Destroyed by Executioner with Helical Railgun Last Messages --------------- 10849_ N-04 Retriever collects Mak. Salvage Targeting Computer. 10849_ N-04 Retriever collects Ovr. Huge Scrapsphere. 10849_ P-80 Master hacks RB-TVX(E), assimilated. 10849_ Penetrated by Slug. 10849_ Ovr. Medium Treads destroyed. 10850_ URSCRCUJ&G6#R O9VVYKAP4M|:YZZT 10850_ 0bP_NET: Lugger 628 inbound, all units not involved in other operations escort to target. 10850_ Slug penetrates P-80 Master. 10850_ Slug penetrates Hotshot. 10850_ Penetrated by Slug. 10850_ Powered Hammer destroyed. 10851_ Slug penetrates RB-TVX(E). 10852_ Slug penetrates Hotshot. 10852_ Slug penetrates 02F44-D. 10852_ 02F44-D destroyed. 10852_ Penetrated by Slug. Map ----- +----------------------------------------------------+ | ##????????????????????????????#########????????? | | ##?????????????????????????????????????????????? | | ############???????????????????????????????????? | | ############???????????????##??????############# | | # ##??????????????# #??????# | | # T ##?????########## ##?????# "" "" | | + """ ##?????##########;##?????# """" " | | # ##?????## ##?????# "" " "" | | ################?## ##?????# """ | | ################?## ##?????# "" | | # ##?## ##?????# " " % | | " # """ " ##?## ###?#### " "" | | T + ##?## = # ### ## " | | # "" " ; ### !! !!!#! # #[!" " " | | " !! !%;!*## !![ !% ;#!=# " " " | | """"!"[![=[!!!=!![|;;%%;##;;;;;;; %&# "" | | "&%%%[!g%=bhg!h=A%=* [ %% % %%%% %;% "" % | | % %%%m[%!!%g%pK%E!!=!!%% %% % %% %"%""" | | !!%=E===!b[%&[!!s!%%% %n%&% % % %"%% &" | | """!*!==![s[%!!%%[!*!%%%%%%;;;;; ""#% %% " " | | # =!= ; !%!=!%![% %%n%;;;;;;#"""# % %% """" | | ## ; *g!%%%=%% %% %%%; "#/ " " | | ## ; =*[!=!* % ;^ """ !## %""" | | ##?### ; =[*%[[*%% % % ; ! """ ## %""% | | ##??# ; [%[[[!% ! # """ ## / " | | ##??# ; =[!!% % @ # ## "" | | ### ;;;!%|%% ;;;;% ; " " ## " | | ### ### [*%=* &; !!= ; "" "# " | | ####### =% ==*!###=!=*!% ; " ## """"" | | ?##;;;[;=;;;[!=###![%%! ; ## "" "" | | *[= !=%!!===% ?%%j%%!! %########### "" " | | " =%%!*/ = [SS[!%%% %;########## "" | | !%%!=%* %SS!!*%=%%* #???????# ""% | | #""""""#"*+[;#=##%=!#;;;; #???????# " | | ?### # != %# # # #??????# % | | ??### ## " "?# # # #?????# " | | ??######" """"?#### ### #????# " " | | ??##### # """??##?### ## #??# #???# """ | | ?????#### ""???##???# ?##???##???# " """ """" | | ?????#### ??????##???# #???????????# "" | | ?????####? ???????##???# #???????????# | | ??####### "???????###### #???????????# | | ??########################???????????# """" "" | | ??##???##????????????##??????????????# """ " | | ??##???##????????????##??????????????# " | | ??##???##????????????##??????????????# "" | | ??###??##????????????##??????????????# "" "" | | ??#######????????????######??????????# "" "" | | ???##########?#############??????????# "" """ | | ?????????????????##??????##??????????# " " | +----------------------------------------------------+ Best States ------------- Heat Dissipation 122 Coolant Potential 50 Energy Generation 52 Energy Capacity 500 Matter Stores 300 Matter Capacity 300 Sight Range 23 Robot Scan Range 20 Terrain Scan Density 10 ECM Strength 1 Cloak Strength 3 Power Amplification 40 Base Temperature (-) 200 Armor Coverage 1050 Resistance: KI 30 Resistance: TH 25 Phase Shifting 15 Evasion (%) 71 Targeting Accuracy 6 Target Analysis 6 Core Analysis 8 Recoil Reduction 4 Matter Filtering 30 Kinecelleration 66 Offensive Hacking 12 Defensive Hacking 12 Item Schematics ----------------- Adv. Quantum Shading Machine | -2/Quarantine | Archive Robot Schematics ------------------ A-27 Freighter | -2/Quarantine | Archive Fabricated ------------ Nothing Repaired ---------- Nothing Studied --------- Cmb. Antigrav System | -2/Research | Hacked Alien Tech Used ----------------- Phase Redirector Sigix Broadsword Subatomic Replicator Achievements -------------- None Challenges ------------ None Game ------ Seed BackupForceClaw Manual? 0 Play Time 02:31:12 Cumulative 156.9 hours Start 2026.08.03 @ 01:41:20 End 2026.08.03 @ 04:33:33 Sessions 1 Manual Loads 0 Difficulty Rogue Special Mode None Game No. 167 Rogue 113 Adventurer 54 Explorer 0 Win Type - Total 7 Types 3/0/1/1/0/0/0/1/0/1 Lore% 63 Gallery% 56 Achievement% 53 Wizard Run 0 Options --------- Layout 1 ASCII 0 Keyboard 0 Movement Mouse Keybinds 1 Fullscreen 2 Font 32/Tamsyn Map View 50x35 Zoom Use 0% Tactical HUD 1 Map Filters NONE Filters NONE Steam 1 RUN: 0d9e5c3e-1bcd-4eaf-87ff-74f92ac6d9ef